bitfinex-derivatives/quotes_BTCF0:USTF0_20210705
["timestamp","ask_amount","ask_price","bid_price","bid_amount"]
[1625483515759,1.10106632,34342.0,34332.0,1.52094213]
[1625483515857,1.16006632,34342.0,34332.0,1.45784213]
[1625483515957,1.16006632,34342.0,34332.0,1.44174213]
[1625483516157,1.16006632,34342.0,34332.0,1.43884213]
[1625483516258,5.2065,34333.0,34332.0,1.40414213]
[1625483516357,5.52702,34333.0,34332.0,1.40414213]
[1625483516458,5.58602,34333.0,34332.0,1.40414213]
[1625483516558,5.58602,34333.0,34332.0,1.40124213]
[1625483516658,5.58602,34333.0,34332.0,1.38884213]
[1625483516858,5.58602,34333.0,34314.0,1.21677544]
[1625483516957,0.057,34332.0,34314.0,1.27577544]
[1625483517057,0.057,34332.0,34314.0,1.33477544]
[1625483517157,0.175,34332.0,34314.0,1.33477544]
[1625483517461,0.24057544,34315.0,34314.0,1.33477544]
[1625483517561,0.48463544,34315.0,34314.0,1.33477544]
[1625483518313,0.48463544,34315.0,34314.0,1.0352]
[1625483518414,0.48463544,34315.0,34314.0,1.0942]
[1625483519213,0.48463544,34315.0,34314.0,1.0352]
[1625483519313,0.48463544,34315.0,34314.0,1.0942]
[1625483520715,0.48463544,34315.0,34314.0,1.0352]
[1625483520817,0.48463544,34315.0,34314.0,1.0942]
[1625483522368,0.48463544,34315.0,34314.0,1.0352]
[1625483522469,0.48463544,34315.0,34314.0,1.0942]
[1625483524322,0.48463544,34315.0,34314.0,1.0352]
[1625483525218,0.48463544,34315.0,34314.0,0.059]
[1625483525294,0.54363544,34315.0,34305.0,0.24057544]
[1625483525529,0.60263544,34315.0,34305.0,0.29957544]
[1625483525578,0.48115088,34306.0,34305.0,0.29957544]
[1625483525675,0.69281088,34306.0,34305.0,0.29957544]
[1625483526075,0.69281088,34306.0,34305.0,0.24057544]
[1625483526174,0.69281088,34306.0,34305.0,0.29957544]
[1625483526276,0.69281088,34306.0,34299.0,0.24057544]
[1625483526277,0.69281088,34306.0,34299.0,0.03857544]
[1625483526375,0.69281088,34306.0,34295.0,0.6793]
[1625483526478,0.75181088,34306.0,34299.0,0.059]
[1625483526576,0.81081088,34306.0,34295.0,0.6793]
[1625483527178,0.81081088,34306.0,34295.0,0.6385]
[1625483527380,0.89791088,34306.0,34295.0,0.6385]
[1625483527579,0.72172632,34296.0,34295.0,0.6385]
[1625483527682,0.93288632,34296.0,34295.0,0.6385]
[1625483527789,0.93288632,34296.0,34288.0,0.24057544]
[1625483527924,0.99188632,34296.0,34268.0,0.965]
[1625483527998,1.05088632,34296.0,34269.0,0.057]
[1625483528088,1.05088632,34296.0,34286.0,0.139]
[1625483529092,0.99188632,34296.0,34286.0,0.139]
[1625483529189,1.05088632,34296.0,34286.0,0.139]
[1625483529288,0.99188632,34296.0,34286.0,0.08]
[1625483529590,0.48115088,34287.0,34286.0,0.08]
[1625483529689,0.80492088,34287.0,34286.0,0.08]
[1625483529889,0.80492088,34287.0,34286.0,0.139]
[1625483530544,0.80492088,34287.0,34286.0,0.08]
[1625483530897,0.80492088,34287.0,34286.0,0.139]
[1625483530994,0.80492088,34287.0,34286.0,0.08]
[1625483531345,0.80492088,34287.0,34286.0,0.139]
[1625483531446,0.80492088,34287.0,34286.0,0.08]
[1625483531546,0.80492088,34287.0,34286.0,0.139]
[1625483532450,0.80492088,34287.0,34286.0,0.08]
[1625483536108,0.89322088,34287.0,34286.0,0.04]
[1625483538410,0.56945088,34287.0,34286.0,0.04]
[1625483538910,0.48115088,34287.0,34286.0,0.04]
[1625483539562,0.54015088,34287.0,34286.0,0.04]
[1625483539662,0.48115088,34287.0,34286.0,0.04]
[1625483540012,0.54015088,34287.0,34286.0,0.04]
[1625483543873,0.48115088,34287.0,34286.0,0.04]
[1625483543973,0.54015088,34287.0,34286.0,0.04]
[1625483544071,0.54015088,34287.0,34286.0,0.34376]
[1625483544772,0.48115088,34287.0,34286.0,0.34376]
[1625483545225,0.54015088,34287.0,34286.0,0.34376]
[1625483545725,0.54015088,34287.0,34286.0,0.28476]
[1625483546277,0.54015088,34287.0,34286.0,0.34376]
[1625483546779,0.54015088,34287.0,34286.0,0.28476]
[1625483547429,0.54015088,34287.0,34286.0,0.04]
[1625483547630,0.54015088,34287.0,34275.0,0.29057544]
[1625483547631,0.62865088,34287.0,34280.0,0.24057544]
[1625483547730,0.62865088,34287.0,34280.0,0.29957544]
[1625483549038,0.62865088,34287.0,34280.0,0.24057544]
[1625483549136,0.62865088,34287.0,34280.0,0.29957544]
[1625483549636,0.24057544,34281.0,34280.0,0.29957544]
[1625483550739,0.24057544,34281.0,34280.0,0.30363231]
[1625483550988,0.0881,34284.0,34280.0,0.30363231]
[1625483551089,0.0881,34284.0,34280.0,0.55280231]
[1625483551539,0.0881,34284.0,34281.0,0.00405672]
[1625483551641,0.24057544,34282.0,34281.0,0.06305672]
[1625483551842,0.24057544,34282.0,34281.0,0.059]
[1625483552090,0.24057544,34282.0,34281.0,0.0630539]
[1625483552341,0.24057544,34282.0,34281.0,0.059]
[1625483552641,0.24057544,34282.0,34280.0,0.24057544]
[1625483552741,0.24057544,34282.0,34281.0,0.059]
[1625483552942,0.24057544,34282.0,34281.0,0.06305389]
[1625483555649,0.24057544,34282.0,34281.0,0.00405389]
[1625483555749,0.24057544,34282.0,34281.0,0.06305389]
[1625483557052,0.24057544,34282.0,34281.0,0.31413389]
[1625483557355,0.24057544,34282.0,34281.0,0.25513389]
[1625483558404,0.50996544,34282.0,34281.0,0.00405389]
[1625483558506,0.50996544,34282.0,34281.0,0.06305389]
[1625483558856,0.50996544,34282.0,34281.0,0.00405389]
[1625483558957,0.50996544,34282.0,34281.0,0.06305389]
[1625483560509,0.24057544,34282.0,34281.0,0.06305389]
[1625483560910,0.24057544,34282.0,34281.0,0.059]
[1625483561009,0.24057544,34282.0,34281.0,0.39413]
[1625483561209,0.24057544,34282.0,34281.0,0.39818409]
[1625483561509,0.24057544,34282.0,34281.0,0.33918409]
[1625483561612,0.24057544,34282.0,34281.0,0.39818409]
[1625483563262,0.24057544,34282.0,34281.0,0.00405409]
[1625483563865,0.29957544,34282.0,34281.0,0.00405409]
[1625483564367,0.29957544,34282.0,34276.0,0.00405446]
[1625483564667,0.29957544,34282.0,34281.0,0.00405446]
[1625483564867,0.29957544,34282.0,34276.0,0.00405449]
[1625483565517,0.35857544,34282.0,34276.0,0.00405449]
[1625483565669,0.35857544,34282.0,34277.0,0.24057544]
[1625483565868,0.29957544,34282.0,34277.0,0.24057544]
[1625483566070,0.29957544,34282.0,34278.0,0.00405463]
[1625483566169,0.29957544,34282.0,34278.0,0.06305463]
[1625483566619,0.29957544,34282.0,34279.0,0.00405478]
[1625483566720,0.29957544,34282.0,34279.0,0.06305478]
[1625483567019,0.24057544,34282.0,34279.0,0.06305478]
[1625483567221,0.24057544,34282.0,34280.0,0.00405495]
[1625483567420,0.24057544,34282.0,34280.0,0.06305495]
[1625483567721,0.24057544,34281.0,34280.0,0.059]
[1625483568022,0.24057544,34281.0,34280.0,0.06305477]
[1625483573333,5.088e-05,34282.0,34280.0,0.12205477]
[1625483573452,0.004,34284.0,34280.0,0.12205477]
[1625483573735,0.004,34284.0,34283.0,0.72172632]
[1625483573836,0.004,34284.0,34283.0,1.09545632]
[1625483574139,0.004,34284.0,34283.0,1.09951144]
[1625483576594,0.004,34284.0,34283.0,1.95563387]
[1625483577043,0.01,34290.0,34283.0,1.95563387]
[1625483577644,0.01,34290.0,34286.0,0.51362664]
[1625483577743,0.01,34290.0,34289.0,0.48115088]
[1625483577944,0.01,34290.0,34289.0,0.54015088]
[1625483578244,0.01,34290.0,34289.0,0.5442051]
[1625483578346,0.01,34291.0,34289.0,0.5402051]
[1625483578445,0.01,34291.0,34289.0,1.11280813]
[1625483578645,0.20991471,34303.0,34289.0,1.11280813]
[1625483578764,0.20991471,34303.0,34290.0,0.50405396]
[1625483578855,0.20991471,34303.0,34290.0,0.82901396]
[1625483578946,0.20991471,34303.0,34290.0,0.88801396]
[1625483579045,0.20991471,34303.0,34291.0,0.00405398]
[1625483579145,0.98582477,34305.0,34291.0,1.09150257]
[1625483579245,0.98582477,34305.0,34291.0,1.15050257]
[1625483579348,0.98582477,34305.0,34292.0,0.00405419]
[1625483579445,0.98582477,34305.0,34292.0,0.06305419]
[1625483579549,0.98582477,34305.0,34292.0,0.12205419]
[1625483579647,1.61195371,34308.0,34292.0,0.12205419]
[1625483579648,1.44811365,34308.0,34292.0,0.12205419]
[1625483579748,1.44811365,34308.0,34307.0,0.06613095]
[1625483579846,1.39111365,34308.0,34307.0,0.36170095]
[1625483580148,1.45011365,34308.0,34307.0,0.36170095]
[1625483580248,1.50911365,34308.0,34307.0,0.36170095]
[1625483580447,1.45011365,34308.0,34307.0,0.36170095]
[1625483580647,1.45011365,34308.0,34307.0,0.29557]
[1625483580899,2.76383936,34308.0,34297.0,0.26638]
[1625483580999,2.76383936,34308.0,34297.0,0.059]
[1625483581199,2.76383936,34308.0,34297.0,0.118]
[1625483581400,1.14953088,34304.0,34297.0,0.118]
[1625483581751,0.24057544,34300.0,34298.0,0.24057544]
[1625483581950,0.24057544,34300.0,34298.0,0.29957544]
[1625483582054,0.24057544,34300.0,34298.0,0.24057544]
[1625483583206,0.32757544,34300.0,34298.0,0.24057544]
[1625483583504,0.38657544,34300.0,34298.0,0.24057544]
[1625483583604,1.1503427,34299.0,34292.0,0.24057544]
[1625483583805,0.48115088,34293.0,34292.0,0.24057544]
[1625483583903,0.78283088,34293.0,34292.0,0.24057544]
[1625483584904,0.48115088,34293.0,34292.0,0.24057544]
[1625483585106,0.48115088,34293.0,34292.0,0.29957544]
[1625483585307,0.48115088,34293.0,34292.0,0.24057544]
[1625483585858,0.69845088,34293.0,34292.0,0.24057544]
[1625483585958,0.75745088,34293.0,34292.0,0.24057544]
[1625483586258,0.81645088,34293.0,34292.0,0.24057544]
[1625483586459,3.28646631,34293.0,34292.0,0.24057544]
[1625483586827,3.28646631,34293.0,34289.0,0.23657544]
[1625483587123,3.28646631,34293.0,34284.0,1.20682566]
[1625483587321,3.28646631,34293.0,34288.0,0.004]
[1625483587414,1.3167235,34289.0,34288.0,0.004]
[1625483587530,1.4634235,34289.0,34288.0,0.004]
[1625483587635,1.5224235,34289.0,34284.0,0.001]
[1625483587715,1.5224235,34289.0,34283.0,1.20686604]
[1625483587816,0.48115088,34284.0,34282.0,0.01]
[1625483587914,0.92111088,34284.0,34282.0,0.01]
[1625483589120,2.07239974,34284.0,34282.0,0.01]
[1625483589422,2.13139974,34284.0,34282.0,0.01]
[1625483589521,1.15057506,34283.0,34282.0,0.01]
[1625483589720,1.26857506,34283.0,34282.0,0.01]
[1625483589824,2.82334654,34283.0,34282.0,0.01]
[1625483590020,2.82334654,34283.0,34278.0,0.9322]
[1625483590322,2.82334654,34283.0,34278.0,0.9123]
[1625483591077,1.14928276,34279.0,34278.0,0.9123]
[1625483591173,1.20828276,34279.0,34278.0,0.9123]
[1625483591274,1.26728276,34279.0,34278.0,0.9123]
[1625483591573,0.118,34279.0,34278.0,0.9123]
[1625483591874,0.59915088,34279.0,34278.0,0.9123]
[1625483592074,1.74793698,34279.0,34278.0,0.8923]
[1625483593479,3.05938372,34279.0,34278.0,0.8923]
[1625483593927,1.74793698,34279.0,34278.0,0.8923]
[1625483594428,1.74793698,34279.0,34278.0,0.8723]
[1625483596683,1.74793698,34279.0,34278.0,0.8423]
[1625483597186,3.0585343,34279.0,34278.0,0.8423]
[1625483601241,1.74793698,34279.0,34278.0,0.8423]
[1625483602391,0.59915088,34279.0,34278.0,0.8423]
[1625483602594,1.74451556,34279.0,34278.0,0.8423]
[1625483603695,1.74451556,34279.0,34278.0,0.8123]
[1625483607554,0.59915088,34279.0,34278.0,0.8123]
[1625483608005,1.74417032,34279.0,34278.0,0.8123]
[1625483608605,1.68517032,34279.0,34278.0,0.8123]
[1625483608806,1.74417032,34279.0,34278.0,0.8123]
[1625483609160,2.72545412,34279.0,34278.0,0.8123]
[1625483611412,2.72545412,34279.0,34278.0,0.7823]
[1625483611711,2.74069939,34279.0,34278.0,0.7823]
[1625483611962,2.72545412,34279.0,34278.0,0.7823]
[1625483613017,2.74071294,34279.0,34278.0,0.7823]
[1625483614370,2.74071294,34279.0,34278.0,0.6951]
[1625483614571,2.74071294,34279.0,34278.0,0.655]
[1625483614673,2.74071294,34279.0,34278.0,0.5237]
[1625483614770,2.74071294,34279.0,34278.0,0.2883]
[1625483614871,5.51627115,34279.0,34278.0,0.2297]
[1625483615072,5.51627115,34279.0,34275.0,0.05]
[1625483615422,0.01526201,34278.0,34275.0,0.05]
[1625483615524,0.07426201,34278.0,34275.0,0.05]
[1625483615723,0.13326201,34278.0,34275.0,0.05]
[1625483615924,3.42589386,34276.0,34275.0,0.05]
[1625483616025,3.48489386,34276.0,34275.0,0.05]
[1625483616125,3.7844693,34276.0,34275.0,0.05]
[1625483616223,3.79973139,34276.0,34275.0,0.0001]
[1625483616725,3.79973139,34276.0,34263.0,0.0854]
[1625483617032,0.01526258,34275.0,34264.0,0.00402372]
[1625483617146,0.07426258,34275.0,34264.0,0.00402372]
[1625483617233,0.13326258,34275.0,34264.0,0.00402372]
[1625483617626,0.01526302,34274.0,34263.0,0.0854]
[1625483617729,0.07426302,34274.0,34263.0,0.0854]
[1625483617928,0.13326302,34274.0,34263.0,0.0854]
[1625483618080,0.72172632,34264.0,34263.0,0.0854]
[1625483618179,0.96858632,34264.0,34263.0,0.0854]
[1625483618278,1.02758632,34264.0,34263.0,0.0854]
[1625483618577,1.08658632,34264.0,34263.0,0.0854]
[1625483619230,1.17338632,34264.0,34255.0,1.03053154]
[1625483619530,1.17338632,34264.0,34256.0,0.00402439]
[1625483619887,0.92652632,34264.0,34256.0,0.00402439]
[1625483619982,0.92652632,34264.0,34256.0,0.27516439]
[1625483620081,0.48115088,34257.0,34256.0,0.51573983]
[1625483620279,0.54015088,34257.0,34256.0,0.08516439]
[1625483620482,0.59915088,34257.0,34251.0,1.03005488]
[1625483620584,0.59915088,34257.0,34249.0,1.2017307]
[1625483620585,0.59915088,34257.0,34248.0,1.03011297]
[1625483620981,0.59915088,34257.0,34249.0,0.00402087]
[1625483621283,0.59915088,34257.0,34243.0,1.03025481]
[1625483621284,0.97385173,34256.0,34243.0,1.03025481]
[1625483621386,1.35973173,34256.0,34243.0,1.03025481]
[1625483621484,1.35973173,34256.0,34243.0,1.08925481]
[1625483621936,1.35973173,34256.0,34243.0,0.059]
[1625483622137,0.24057544,34245.0,34244.0,0.24057544]
[1625483622235,0.29957544,34245.0,34244.0,0.24057544]
[1625483622336,0.24057544,34245.0,34244.0,0.24057544]
[1625483622435,0.24057544,34245.0,34244.0,0.29957544]
[1625483624186,0.48115088,34245.0,34244.0,0.29957544]
[1625483628490,0.48115088,34257.0,34244.0,0.29957544]
[1625483628591,0.59915088,34257.0,34244.0,0.29957544]
[1625483628693,0.54015088,34257.0,34244.0,0.29957544]
[1625483628790,0.48115088,34257.0,34244.0,0.35857544]
[1625483629140,0.54015088,34257.0,34244.0,0.35857544]
[1625483630145,0.54015088,34257.0,34256.0,0.24057544]
[1625483630344,0.54015088,34257.0,34256.0,0.29957544]
[1625483630746,0.48115088,34257.0,34256.0,0.29957544]
[1625483630849,0.48115088,34257.0,34256.0,0.61125544]
[1625483631147,0.54015088,34257.0,34256.0,0.61125544]
[1625483631999,0.54015088,34257.0,34256.0,0.37068]
[1625483632099,0.54015088,34257.0,34256.0,0.059]
[1625483632552,0.54015088,34257.0,34252.0,0.24057544]
[1625483632652,0.54015088,34257.0,34256.0,0.059]
[1625483633556,0.54015088,34257.0,34252.0,0.24057544]
[1625483633655,0.54015088,34257.0,34252.0,0.29957544]
[1625483633755,0.59915088,34257.0,34252.0,0.29957544]
[1625483633854,0.59915088,34257.0,34252.0,0.24057544]
[1625483634206,0.24057544,34253.0,34252.0,0.24057544]
[1625483634307,0.29957544,34253.0,34252.0,0.24057544]
[1625483634607,0.35857544,34253.0,34252.0,0.24057544]
[1625483634922,0.29957544,34253.0,34252.0,0.24057544]
[1625483636160,0.35857544,34253.0,34252.0,0.24057544]
[1625483637113,0.29957544,34253.0,34252.0,0.24057544]
[1625483637514,0.35857544,34253.0,34252.0,0.24057544]
[1625483637815,0.35857544,34253.0,34244.0,0.24057544]
[1625483637916,0.35857544,34253.0,34244.0,0.29957544]
[1625483638216,0.24057544,34245.0,34244.0,0.29957544]
[1625483639321,0.29957544,34245.0,34244.0,0.29957544]
[1625483641024,0.29957544,34245.0,34244.0,0.24057544]
[1625483641131,0.29957544,34245.0,34244.0,0.29957544]
[1625483641325,0.29957544,34245.0,34244.0,0.24057544]
[1625483641828,0.29957544,34245.0,34244.0,0.29957544]
[1625483642710,0.29957544,34245.0,34244.0,0.24057544]
[1625483644145,0.29957544,34245.0,34244.0,0.29957544]
[1625483644251,0.24057544,34245.0,34244.0,0.29957544]
[1625483644333,0.24057544,34245.0,34244.0,0.56706544]
[1625483644532,0.29957544,34245.0,34244.0,0.56706544]
[1625483644632,0.24057544,34245.0,34244.0,0.56706544]
[1625483645486,0.24057544,34245.0,34244.0,0.57109276]
[1625483645584,0.24057544,34251.0,34244.0,0.57109276]
[1625483645684,0.64600916,34256.0,34244.0,0.63009276]
[1625483645855,0.70500916,34256.0,34244.0,0.63009276]
[1625483645935,0.64661094,34258.0,34244.0,0.63009276]
[1625483646035,0.70561094,34258.0,34245.0,0.00402667]
[1625483646139,0.64661094,34258.0,34245.0,0.00402667]
[1625483646236,0.64661094,34258.0,34257.0,0.72172632]
[1625483646337,0.64661094,34258.0,34257.0,1.04831632]
[1625483646436,0.70561094,34258.0,34257.0,1.10731632]
[1625483646537,0.059,34258.0,34257.0,1.10731632]
[1625483646738,0.059,34258.0,34257.0,1.04831632]
[1625483646838,0.004,34259.0,34257.0,1.10731632]
[1625483647340,4.04867544,34262.0,34257.0,1.07931632]
[1625483647438,0.059,34259.0,34258.0,0.00402613]
[1625483647637,4.04867544,34262.0,34258.0,0.06302613]
[1625483647837,4.10767544,34262.0,34258.0,0.06302613]
[1625483647988,4.10767544,34262.0,34259.0,0.00401956]
[1625483648089,4.10767544,34262.0,34259.0,0.06301956]
[1625483648291,4.10767544,34262.0,34261.0,0.24057544]
[1625483648993,4.04867544,34262.0,34261.0,0.24057544]
[1625483650148,4.10767544,34262.0,34261.0,0.24057544]
[1625483650250,4.10767544,34262.0,34261.0,0.24459472]
[1625483650999,0.29957544,34262.0,34261.0,0.24459472]
[1625483651100,0.24057544,34262.0,34261.0,0.24459472]
[1625483651199,0.24057544,34262.0,34261.0,0.24057544]
[1625483653203,0.24057544,34262.0,34261.0,0.24459628]
[1625483653854,0.24057544,34262.0,34261.0,0.24057544]
[1625483658012,0.24057544,34262.0,34261.0,0.29957544]
[1625483660876,0.24057544,34262.0,34261.0,0.24057544]
[1625483663239,0.24057544,34262.0,34261.0,0.29957544]
[1625483665542,0.24057544,34262.0,34261.0,0.30359607]
[1625483672660,0.48827336,34265.0,34261.0,0.30359607]
[1625483672757,0.48827336,34265.0,34261.0,0.36259607]
[1625483673015,0.48857524,34266.0,34261.0,1.56686331]
[1625483673207,0.48857524,34266.0,34262.0,0.00401613]
[1625483673309,0.48857524,34266.0,34262.0,0.39659613]
[1625483673559,0.48857524,34266.0,34262.0,0.33759613]
[1625483673659,0.48857524,34266.0,34263.0,0.51639942]
[1625483673760,0.48857524,34266.0,34263.0,0.57941549]
[1625483673959,0.48857524,34266.0,34264.0,0.00401616]
[1625483674058,0.48857524,34266.0,34264.0,0.06301616]
[1625483674059,0.48881072,34265.0,34264.0,0.06301616]
[1625483674359,0.48881072,34265.0,34264.0,0.3035916]
[1625483675014,1.3812488,34266.0,34264.0,0.3035916]
[1625483675310,1.3812488,34266.0,34265.0,0.00401624]
[1625483675409,1.3812488,34266.0,34265.0,0.06301624]
[1625483676061,0.72955547,34266.0,34265.0,0.06301624]
[1625483676263,0.72955547,34266.0,34265.0,0.12201624]
[1625483680275,0.72955547,34266.0,34265.0,0.06301624]
[1625483680587,0.78855547,34266.0,34265.0,0.06301624]
[1625483680690,1.06149547,34266.0,34265.0,0.00401624]
[1625483680775,1.72821417,34266.0,34265.0,0.00401624]
[1625483680885,2.70528093,34266.0,34265.0,0.00401624]
[1625483681480,3.8443885,34266.0,34265.0,0.00401624]
[1625483682332,3.8443885,34266.0,34261.0,0.24057544]
[1625483682431,0.24057544,34262.0,34261.0,0.24057544]
[1625483682532,0.38687544,34262.0,34261.0,0.24057544]
[1625483682934,0.40216338,34262.0,34261.0,0.24459244]
[1625483683136,3.65349708,34262.0,34261.0,0.24459244]
[1625483683484,3.65349708,34262.0,34261.0,0.004017]
[1625483683787,3.65349708,34262.0,34257.0,0.21559244]
[1625483683887,4.95334637,34262.0,34257.0,0.18659244]
[1625483684187,0.01530144,34261.0,34257.0,0.18659244]
[1625483684288,3.2463469,34258.0,34257.0,0.18659244]
[1625483684387,3.77179234,34258.0,34257.0,0.18659244]
[1625483684486,3.83079234,34258.0,34257.0,0.18659244]
[1625483684790,5.1435626,34258.0,34257.0,0.18659244]
[1625483685087,5.1435626,34258.0,34257.0,0.006]
[1625483686240,6.60268422,34258.0,34257.0,0.006]
[1625483686339,6.60268422,34258.0,34252.0,0.004]
[1625483686440,0.24057544,34253.0,34252.0,0.004]
[1625483686541,0.29957544,34253.0,34252.0,0.004]
[1625483686841,3.54235308,34253.0,34252.0,0.004]
[1625483689544,2.40744575,34253.0,34252.0,0.004]
[1625483690849,3.54196887,34253.0,34252.0,0.004]
[1625483692150,1.43464488,34253.0,34252.0,0.004]
[1625483692550,3.54112559,34253.0,34252.0,0.004]
[1625483693753,4.83685061,34253.0,34252.0,0.004]
[1625483694152,3.54112559,34253.0,34252.0,0.004]
[1625483694353,0.0885,34252.0,34250.0,0.006]
[1625483694455,0.0885,34252.0,34250.0,0.065]
[1625483694556,0.24057544,34251.0,34250.0,0.065]
[1625483694654,0.45006544,34251.0,34250.0,0.065]
[1625483694754,0.50906544,34251.0,34250.0,0.065]
[1625483694854,3.74685662,34251.0,34250.0,0.065]
[1625483695255,3.74285662,34251.0,34250.0,0.059]
[1625483695707,5.03748408,34251.0,34250.0,0.059]
[1625483696261,3.74285662,34251.0,34250.0,0.059]
[1625483697259,3.74285662,34251.0,34249.0,0.006]
[1625483697358,3.80185662,34251.0,34249.0,0.006]
[1625483697562,3.80185662,34251.0,34246.0,0.9425]
[1625483697660,4.52519726,34250.0,34246.0,0.9425]
[1625483697859,4.58419726,34250.0,34246.0,0.9425]
[1625483698158,1.13079773,34247.0,34246.0,0.9425]
[1625483698259,3.3174738,34247.0,34246.0,0.9425]
[1625483698563,3.55804924,34247.0,34246.0,0.9425]
[1625483698764,3.61704924,34247.0,34246.0,0.9425]
[1625483698912,3.67604924,34247.0,34246.0,0.9425]
[1625483699014,3.61704924,34247.0,34246.0,0.9425]
[1625483699262,3.61704924,34247.0,34246.0,0.9125]
[1625483699361,3.67604924,34247.0,34245.0,0.004]
[1625483699763,4.51930171,34246.0,34245.0,0.004]
[1625483699862,4.57830171,34246.0,34245.0,0.004]
[1625483699965,4.63730171,34246.0,34245.0,0.004]
[1625483700266,4.57830171,34246.0,34245.0,0.004]
[1625483700367,4.63730171,34246.0,34245.0,0.004]
[1625483700566,4.87787715,34246.0,34236.0,0.43024119]
[1625483700916,4.87787715,34246.0,34236.0,0.42624119]
[1625483701018,0.32272236,34237.0,34233.0,0.08605245]
[1625483701118,0.62633236,34237.0,34233.0,0.08605245]
[1625483701319,0.68533236,34237.0,34233.0,0.08605245]
[1625483701417,0.3224677,34234.0,34232.0,0.58057544]
[1625483701618,0.3814677,34234.0,34232.0,0.58057544]
[1625483701917,0.32236476,34233.0,34232.0,0.58057544]
[1625483702117,0.38136476,34233.0,34232.0,0.58057544]
[1625483702521,0.86251564,34233.0,34232.0,0.58057544]
[1625483703472,0.54015088,34233.0,34232.0,0.58057544]
[1625483703996,0.54015088,34233.0,34232.0,0.34]
[1625483704323,0.54015088,34233.0,34232.0,0.0001]
[1625483704424,0.0589,34232.0,34226.0,0.85970192]
[1625483704624,4.88445088,34227.0,34226.0,0.85970192]
[1625483704725,5.27223088,34227.0,34226.0,0.85970192]
[1625483704824,5.27223088,34227.0,34220.0,0.58450263]
[1625483704923,5.27223088,34227.0,34220.0,0.64350263]
[1625483705224,5.27223088,34227.0,34220.0,0.58450263]
[1625483705527,5.27223088,34227.0,34220.0,0.64350263]
[1625483705624,0.32160691,34225.0,34220.0,0.29957544]
[1625483705828,0.38060691,34225.0,34220.0,0.29957544]
[1625483706429,0.059,34225.0,34221.0,0.0876]
[1625483706526,0.059,34225.0,34221.0,0.1466]
[1625483706626,0.059,34225.0,34224.0,0.24057544]
[1625483706725,0.059,34225.0,34224.0,0.32827544]
[1625483706928,0.059,34225.0,34224.0,0.24057544]
[1625483707031,0.059,34225.0,34220.0,0.58402319]
[1625483707032,0.059,34225.0,34220.0,0.24057544]
[1625483707148,0.31741,34225.0,34220.0,0.24057544]
[1625483707237,0.31741,34225.0,34214.0,1.09914996]
[1625483707332,0.31741,34225.0,34214.0,1.15814996]
[1625483707879,0.32072513,34223.0,34214.0,0.29957544]
[1625483708084,0.37972513,34223.0,34214.0,0.29957544]
[1625483708532,0.80132142,34222.0,34214.0,0.29957544]
[1625483708630,0.48115088,34215.0,34214.0,0.29957544]
[1625483708731,0.78171088,34215.0,34214.0,0.24057544]
[1625483709183,0.78171088,34215.0,34209.0,0.34343685]
[1625483709282,0.78171088,34215.0,34208.0,0.70192896]
[1625483709410,0.84071088,34215.0,34208.0,0.51612896]
[1625483709509,0.5,34214.0,34208.0,0.51612896]
[1625483709705,0.059,34214.0,34208.0,0.40512896]
[1625483709799,0.059,34214.0,34191.0,0.057]
[1625483709800,0.31900967,34213.0,34197.0,0.34286263]
[1625483709883,0.31900967,34213.0,34198.0,0.729]
[1625483709985,0.43700967,34213.0,34198.0,0.729]
[1625483710589,0.24057544,34202.0,34201.0,0.24057544]
[1625483710689,5.20057544,34202.0,34201.0,0.29957544]
[1625483710990,5.25957544,34202.0,34198.0,0.91057544]
[1625483711090,5.25957544,34202.0,34198.0,0.67]
[1625483711240,5.25957544,34202.0,34198.0,0.729]
[1625483711341,5.25957544,34202.0,34198.0,0.416]
[1625483711560,5.31857544,34202.0,34198.0,0.2517]
[1625483711640,5.31857544,34202.0,34196.0,0.04837189]
[1625483711840,5.31857544,34202.0,34196.0,0.02547189]
[1625483711958,5.31857544,34202.0,34194.0,0.582403]
[1625483712041,0.5,34201.0,34194.0,0.453703]
[1625483712160,0.618,34201.0,34182.0,1.02867491]
[1625483712261,0.618,34201.0,34182.0,0.84267491]
[1625483712341,0.057,34200.0,34182.0,0.84267491]
[1625483712441,0.26787,34200.0,34182.0,0.84267491]
[1625483712590,0.5,34199.0,34182.0,0.84267491]
[1625483712667,0.96230176,34183.0,34182.0,0.74787491]
[1625483712743,1.21796176,34183.0,34182.0,0.71627491]
[1625483712844,1.27696176,34183.0,34182.0,0.20997491]
[1625483712945,1.33596176,34183.0,34182.0,0.10637491]
[1625483713050,1.83596176,34183.0,34180.0,0.79689564]
[1625483713148,1.89496176,34183.0,34180.0,0.40699564]
[1625483713246,1.77696176,34183.0,34178.0,1.37156655]
[1625483713345,1.86746176,34183.0,34166.0,1.36655977]
[1625483713447,0.059,34180.0,34166.0,1.36655977]
[1625483713747,0.118,34180.0,34166.0,1.36655977]
[1625483713945,0.059,34180.0,34166.0,1.36655977]
[1625483714053,0.118,34180.0,34157.0,1.70819971]
[1625483714149,0.118,34180.0,34157.0,0.059]
[1625483714255,4.4637,34171.0,34157.0,0.059]
[1625483714548,4.5227,34171.0,34157.0,0.059]
[1625483714647,0.24057544,34168.0,34167.0,0.24057544]
[1625483714747,0.24057544,34168.0,34167.0,0.29957544]
[1625483716301,0.24057544,34168.0,34167.0,0.24057544]
[1625483716401,0.24057544,34168.0,34160.0,0.24057544]
[1625483716601,0.48115088,34161.0,34160.0,0.24057544]
[1625483716700,0.48115088,34161.0,34160.0,0.29957544]
[1625483717100,0.48115088,34161.0,34160.0,0.35857544]
[1625483717410,0.54015088,34161.0,34160.0,0.29957544]
[1625483717509,0.54015088,34161.0,34160.0,0.24057544]
[1625483717603,0.54015088,34161.0,34157.0,0.24057544]
[1625483717702,0.54015088,34161.0,34130.0,0.057]
[1625483717802,0.54015088,34161.0,34113.0,0.5]
[1625483717803,0.54015088,34161.0,34148.0,0.059]
[1625483717902,0.54015088,34161.0,34148.0,0.118]
[1625483718553,0.48115088,34161.0,34148.0,0.059]
[1625483718654,0.48115088,34161.0,34156.0,0.24057544]
[1625483718755,0.48115088,34161.0,34156.0,0.29957544]
[1625483718858,0.48115088,34161.0,34156.0,0.35857544]
[1625483718954,0.48115088,34161.0,34156.0,0.29957544]
[1625483719454,0.48115088,34161.0,34156.0,0.61362544]
[1625483719705,0.48115088,34161.0,34156.0,0.67262544]
[1625483720658,0.24057544,34157.0,34156.0,0.67262544]
[1625483721908,0.24057544,34157.0,34156.0,0.35857544]